[Event "Titled Tuesday Blitz July 27 2021"]
[White "Trent, Lawrence"]
[Black "Gabrielian, Artur"]
[WhiteFideId "408638"]
[BlackFideId "4131002"]
[WhiteElo "2474"]
[BlackElo "2523"]
[Result "0-1"]
[Round "06"]
[TimeControl "180+1"]
[Date "2021.07.27"]
[WhiteClock "0:00:10"]
[BlackClock "0:00:17"]

1. d4 {[%clk 0:03:00]}  Nf6 {[%clk 0:02:59]} 2. Bg5 {[%clk 0:02:59]}  g6 {[%clk 0:02:59]} 3. Bxf6 {[%clk 0:02:58]}  exf6 {[%clk 0:02:59]} 4. h4 {[%clk 0:02:59]}  c5 {[%clk 0:02:57]} 5. h5 {[%clk 0:02:58]}  cxd4 {[%clk 0:02:50]} 6. Qxd4 {[%clk 0:02:57]}  Nc6 {[%clk 0:02:48]} 7. Qd2 {[%clk 0:02:56]}  d5 {[%clk 0:02:46]} 8. e3 {[%clk 0:02:54]}  d4 {[%clk 0:02:44]} 9. Nf3 {[%clk 0:02:52]}  Qb6 {[%clk 0:02:36]} 10. Nxd4 {[%clk 0:02:21]}  Qxb2 {[%clk 0:02:34]} 11. Nb3 {[%clk 0:02:19]}  Be6 {[%clk 0:02:24]} 12. Qc1 {[%clk 0:02:08]}  Qe5 {[%clk 0:01:59]} 13. N1d2 {[%clk 0:02:01]}  O-O-O {[%clk 0:01:57]} 14. Bd3 {[%clk 0:01:57]}  gxh5 {[%clk 0:01:54]} 15. Nf3 {[%clk 0:01:50]}  Bb4+ {[%clk 0:01:52]} 16. Kf1 {[%clk 0:01:50]}  Qc3 {[%clk 0:01:33]} 17. Rb1 {[%clk 0:01:49]}  Bg4 {[%clk 0:01:29]} 18. Nbd4 {[%clk 0:01:48]}  Ne5 {[%clk 0:01:22]} 19. Rb3 {[%clk 0:01:36]}  Qc5 {[%clk 0:01:21]} 20. a3 {[%clk 0:01:35]}  Nxd3 {[%clk 0:01:10]} 21. Rxd3 {[%clk 0:01:34]}  Bc3 {[%clk 0:01:05]} 22. Qb1 {[%clk 0:01:16]}  Kb8 {[%clk 0:00:57]} 23. Qb3 {[%clk 0:01:05]}  Rc8 {[%clk 0:00:52]} 24. Nb5 {[%clk 0:01:02]}  Ba5 {[%clk 0:00:35]} 25. Nfd4 {[%clk 0:00:29]}  a6 {[%clk 0:00:28]} 26. a4 {[%clk 0:00:12]}  axb5 {[%clk 0:00:28]} 27. axb5 {[%clk 0:00:13]}  Rhd8 {[%clk 0:00:25]} 28. Qxf7 {[%clk 0:00:11]}  Bd7 {[%clk 0:00:19]} 29. Qxf6 {[%clk 0:00:11]}  Bxb5 {[%clk 0:00:18]} 30. Nxb5 {[%clk 0:00:11]}  Qxb5 {[%clk 0:00:18]} 31. Qf4+ {[%clk 0:00:10]}  Bc7 {[%clk 0:00:17]} 32. Qe4 {[%clk 0:00:10]}  Rxd3 {[%clk 0:00:16]} 33. Qxd3 {[%clk 0:00:11]}  Qb1+ {[%clk 0:00:17]} 34. Ke2 {[%clk 0:00:10]}  Qxh1 {[%clk 0:00:17]} 0-1


[Site "https://www.chess.com"]

[Event "Titled Tuesday Blitz July 27 2021"]
[White "Tsaruk, Maksim"]
[Black "Nabaty, Tamir"]
[WhiteFideId "13511173"]
[BlackFideId "2809052"]
[WhiteElo "2184"]
[BlackElo "2627"]
[Result "1-0"]
[Round "06"]
[TimeControl "180+1"]
[Date "2021.07.27"]
[WhiteClock "0:00:21"]
[BlackClock "0:00:46"]

1. d4 {[%clk 0:02:58]}  Nf6 {[%clk 0:02:57]} 2. Nf3 {[%clk 0:02:59]}  b6 {[%clk 0:02:56]} 3. Bf4 {[%clk 0:02:54]}  Bb7 {[%clk 0:02:56]} 4. e3 {[%clk 0:02:54]}  g6 {[%clk 0:02:56]} 5. h3 {[%clk 0:02:54]}  Bg7 {[%clk 0:02:57]} 6. c3 {[%clk 0:02:52]}  O-O {[%clk 0:02:57]} 7. Be2 {[%clk 0:02:53]}  d5 {[%clk 0:02:58]} 8. O-O {[%clk 0:02:52]}  c5 {[%clk 0:02:59]} 9. a4 {[%clk 0:02:52]}  Nc6 {[%clk 0:02:59]} 10. Nbd2 {[%clk 0:02:49]}  Nd7 {[%clk 0:02:59]} 11. Qc2 {[%clk 0:02:41]}  e5 {[%clk 0:02:59]} 12. dxe5 {[%clk 0:02:40]}  Ndxe5 {[%clk 0:03:00]} 13. Nxe5 {[%clk 0:02:41]}  Bxe5 {[%clk 0:03:01]} 14. Bxe5 {[%clk 0:02:40]}  Nxe5 {[%clk 0:03:02]} 15. Nf3 {[%clk 0:02:35]}  Nd7 {[%clk 0:03:00]} 16. Rfd1 {[%clk 0:02:35]}  Nf6 {[%clk 0:03:00]} 17. a5 {[%clk 0:02:35]}  Qe7 {[%clk 0:02:52]} 18. Qa4 {[%clk 0:02:30]}  Rad8 {[%clk 0:02:39]} 19. axb6 {[%clk 0:02:22]}  axb6 {[%clk 0:02:39]} 20. Qb5 {[%clk 0:02:22]}  Qc7 {[%clk 0:02:34]} 21. Ra7 {[%clk 0:02:19]}  Ra8 {[%clk 0:02:34]} 22. Rda1 {[%clk 0:02:15]}  Bc6 {[%clk 0:02:24]} 23. Qa6 {[%clk 0:02:07]}  Bb7 {[%clk 0:02:15]} 24. Qb5 {[%clk 0:01:59]}  Rxa7 {[%clk 0:02:12]} 25. Rxa7 {[%clk 0:01:59]}  Ra8 {[%clk 0:02:13]} 26. Rxa8+ {[%clk 0:01:48]}  Bxa8 {[%clk 0:02:14]} 27. Qa4 {[%clk 0:01:48]}  Bb7 {[%clk 0:02:12]} 28. Ba6 {[%clk 0:01:48]}  Bc6 {[%clk 0:02:06]} 29. Bb5 {[%clk 0:01:48]}  Bxb5 {[%clk 0:02:04]} 30. Qxb5 {[%clk 0:01:49]}  Kg7 {[%clk 0:02:05]} 31. Nd2 {[%clk 0:01:40]}  Ne8 {[%clk 0:02:04]} 32. Qxe8 {[%clk 0:01:39]}  Qd6 {[%clk 0:01:55]} 33. g3 {[%clk 0:01:34]}  h5 {[%clk 0:01:55]} 34. h4 {[%clk 0:01:34]}  Kf6 {[%clk 0:01:55]} 35. Nf3 {[%clk 0:01:31]}  Qc7 {[%clk 0:01:48]} 36. Qh8+ {[%clk 0:01:29]}  Kf5 {[%clk 0:01:44]} 37. Kg2 {[%clk 0:01:27]}  Ke4 {[%clk 0:01:45]} 38. Qf6 {[%clk 0:01:12]}  Kd3 {[%clk 0:01:41]} 39. Ne5+ {[%clk 0:00:59]}  Kc2 {[%clk 0:01:40]} 40. Nxf7 {[%clk 0:00:59]}  Qb7 {[%clk 0:01:36]} 41. Qxg6+ {[%clk 0:00:54]}  Kxb2 {[%clk 0:01:35]} 42. Nd6 {[%clk 0:00:53]}  Qa8 {[%clk 0:01:31]} 43. Qd3 {[%clk 0:00:40]}  d4+ {[%clk 0:01:31]} 44. Ne4 {[%clk 0:00:40]}  dxe3 {[%clk 0:01:25]} 45. Qxe3 {[%clk 0:00:39]}  Qa4 {[%clk 0:01:23]} 46. Qf3 {[%clk 0:00:36]}  Qc4 {[%clk 0:01:18]} 47. g4 {[%clk 0:00:34]}  hxg4 {[%clk 0:01:10]} 48. Qxg4 {[%clk 0:00:34]}  b5 {[%clk 0:01:05]} 49. h5 {[%clk 0:00:33]}  b4 {[%clk 0:01:04]} 50. cxb4 {[%clk 0:00:34]}  cxb4 {[%clk 0:01:04]} 51. h6 {[%clk 0:00:35]}  b3 {[%clk 0:00:58]} 52. h7 {[%clk 0:00:29]}  Qd4 {[%clk 0:00:58]} 53. Qh4 {[%clk 0:00:29]}  Qg7+ {[%clk 0:00:53]} 54. Kh2 {[%clk 0:00:20]}  Qe5+ {[%clk 0:00:52]} 55. f4 {[%clk 0:00:20]}  Qxe4 {[%clk 0:00:46]} 56. h8=Q+ {[%clk 0:00:20]}  Kb1 {[%clk 0:00:46]} 57. Qf2 {[%clk 0:00:21]} 1-0


[Site "https://www.chess.com"]

[Event "Titled Tuesday Blitz July 27 2021"]
[White "Urazayev, Arystanbek"]
[Black "Zubov, Alexander"]
[WhiteFideId "13709810"]
[BlackFideId "14109409"]
[WhiteElo "2321"]
[BlackElo "2740"]
[Result "0-1"]
[Round "06"]
[TimeControl "180+1"]
[Date "2021.07.27"]
[WhiteClock "0:00:03"]
[BlackClock "0:00:21"]

1. e4 {[%clk 0:03:00]}  c5 {[%clk 0:02:59]} 2. Nf3 {[%clk 0:03:01]}  e6 {[%clk 0:02:59]} 3. c3 {[%clk 0:03:01]}  Nf6 {[%clk 0:02:59]} 4. e5 {[%clk 0:03:01]}  Nd5 {[%clk 0:02:59]} 5. d4 {[%clk 0:03:02]}  cxd4 {[%clk 0:03:00]} 6. cxd4 {[%clk 0:03:03]}  d6 {[%clk 0:03:00]} 7. Bc4 {[%clk 0:03:04]}  Nc6 {[%clk 0:03:00]} 8. O-O {[%clk 0:03:04]}  Be7 {[%clk 0:03:01]} 9. Bd2 {[%clk 0:03:04]}  O-O {[%clk 0:02:53]} 10. Nc3 {[%clk 0:03:04]}  Nb6 {[%clk 0:02:51]} 11. Bb3 {[%clk 0:03:01]}  Na5 {[%clk 0:02:51]} 12. Qe2 {[%clk 0:02:56]}  Nxb3 {[%clk 0:02:49]} 13. axb3 {[%clk 0:02:57]}  Bd7 {[%clk 0:02:48]} 14. Rfe1 {[%clk 0:02:46]}  Bc6 {[%clk 0:02:47]} 15. Ne4 {[%clk 0:02:37]}  Nd5 {[%clk 0:02:36]} 16. exd6 {[%clk 0:02:32]}  Bxd6 {[%clk 0:02:34]} 17. Ne5 {[%clk 0:02:33]}  Ne7 {[%clk 0:02:18]} 18. Bg5 {[%clk 0:02:14]}  f6 {[%clk 0:01:50]} 19. Nc4 {[%clk 0:01:47]}  Bc7 {[%clk 0:01:36]} 20. Bd2 {[%clk 0:01:04]}  Nf5 {[%clk 0:01:24]} 21. Bc3 {[%clk 0:00:50]}  Nxd4 {[%clk 0:01:12]} 22. Qd1 {[%clk 0:00:37]}  e5 {[%clk 0:01:03]} 23. f3 {[%clk 0:00:21]}  Qd5 {[%clk 0:00:59]} 24. Ne3 {[%clk 0:00:15]}  Qf7 {[%clk 0:00:56]} 25. Bxd4 {[%clk 0:00:12]}  Rfd8 {[%clk 0:00:56]} 26. Nf5 {[%clk 0:00:12]}  exd4 {[%clk 0:00:46]} 27. Neg3 {[%clk 0:00:12]}  Rd7 {[%clk 0:00:45]} 28. Qd3 {[%clk 0:00:09]}  a6 {[%clk 0:00:40]} 29. b4 {[%clk 0:00:06]}  Re8 {[%clk 0:00:36]} 30. Rxe8+ {[%clk 0:00:05]}  Qxe8 {[%clk 0:00:37]} 31. Qd2 {[%clk 0:00:06]}  d3 {[%clk 0:00:35]} 32. Re1 {[%clk 0:00:05]}  Qf7 {[%clk 0:00:35]} 33. Ne4 {[%clk 0:00:02]}  Rd5 {[%clk 0:00:27]} 34. Ne3 {[%clk 0:00:01]}  Bb6 {[%clk 0:00:26]} 35. Nc3 {[%clk 0:00:01]}  Rd8 {[%clk 0:00:24]} 36. Kh1 {[%clk 0:00:02]}  Bxe3 {[%clk 0:00:22]} 37. Rxe3 {[%clk 0:00:02]}  Qc4 {[%clk 0:00:23]} 38. Qe1 {[%clk 0:00:02]}  d2 {[%clk 0:00:22]} 39. Qd1 {[%clk 0:00:03]}  Qxb4 {[%clk 0:00:21]} 40. Re2 {[%clk 0:00:03]}  Qxb2 {[%clk 0:00:21]} 41. Nb1 {[%clk 0:00:03]}  Qxb1 {[%clk 0:00:21]} 0-1


[Site "https://www.chess.com"]

[Event "Titled Tuesday Blitz July 27 2021"]
[White "Vokhidov, Shamsiddin"]
[Black "Horobetz, Graham"]
[WhiteFideId "14204223"]
[BlackFideId "2047322"]
[WhiteElo "2572"]
[BlackElo "2624"]
[Result "1-0"]
[Round "06"]
[TimeControl "180+1"]
[Date "2021.07.27"]
[WhiteClock "0:02:15"]
[BlackClock "0:00:09"]

1. e4 {[%clk 0:03:00]}  c5 {[%clk 0:02:56]} 2. Nf3 {[%clk 0:03:00]}  d6 {[%clk 0:02:56]} 3. d4 {[%clk 0:03:00]}  cxd4 {[%clk 0:02:57]} 4. Qxd4 {[%clk 0:03:01]}  Nc6 {[%clk 0:02:55]} 5. Bb5 {[%clk 0:03:01]}  Bd7 {[%clk 0:02:53]} 6. Bxc6 {[%clk 0:03:01]}  Bxc6 {[%clk 0:02:54]} 7. Nc3 {[%clk 0:03:01]}  e6 {[%clk 0:02:50]} 8. Bg5 {[%clk 0:03:01]}  Nf6 {[%clk 0:02:47]} 9. Bxf6 {[%clk 0:03:01]}  Qxf6 {[%clk 0:02:46]} 10. Qe3 {[%clk 0:03:01]}  Be7 {[%clk 0:02:35]} 11. h4 {[%clk 0:03:00]}  h6 {[%clk 0:02:35]} 12. O-O-O {[%clk 0:02:59]}  a6 {[%clk 0:02:23]} 13. g4 {[%clk 0:02:53]}  g6 {[%clk 0:01:46]} 14. Nd4 {[%clk 0:02:48]}  Rc8 {[%clk 0:01:37]} 15. f4 {[%clk 0:02:47]}  e5 {[%clk 0:01:29]} 16. Nxc6 {[%clk 0:02:43]}  exf4 {[%clk 0:01:13]} 17. g5 {[%clk 0:02:33]}  hxg5 {[%clk 0:00:53]} 18. hxg5 {[%clk 0:02:30]}  Rxh1 {[%clk 0:00:38]} 19. Rxh1 {[%clk 0:02:31]}  Qg7 {[%clk 0:00:32]} 20. Qd4 {[%clk 0:02:23]}  Qxd4 {[%clk 0:00:23]} 21. Nxd4 {[%clk 0:02:24]}  Bxg5 {[%clk 0:00:24]} 22. Nf3 {[%clk 0:02:21]}  Bf6 {[%clk 0:00:20]} 23. Nd5 {[%clk 0:02:20]}  Bg7 {[%clk 0:00:17]} 24. c3 {[%clk 0:02:18]}  Rc4 {[%clk 0:00:13]} 25. Re1 {[%clk 0:02:16]}  Bh6 {[%clk 0:00:10]} 26. Kc2 {[%clk 0:02:16]}  Kd7 {[%clk 0:00:09]} 27. Nb6+ {[%clk 0:02:15]} 1-0


[Site "https://www.chess.com"]

[Event "Titled Tuesday Blitz July 27 2021"]
[White "Wong, Yinn Long"]
[Black "Spata, German"]
[WhiteFideId "5707684"]
[BlackFideId "113026"]
[WhiteElo "2016"]
[BlackElo "2238"]
[Result "1-0"]
[Round "06"]
[TimeControl "180+1"]
[Date "2021.07.27"]
[WhiteClock "0:00:24"]
[BlackClock "0:00:02"]

1. Nf3 {[%clk 0:03:00]}  g6 {[%clk 0:02:55]} 2. g3 {[%clk 0:03:00]}  Bg7 {[%clk 0:02:54]} 3. Bg2 {[%clk 0:03:00]}  c5 {[%clk 0:02:53]} 4. O-O {[%clk 0:03:00]}  Nc6 {[%clk 0:02:52]} 5. d3 {[%clk 0:02:59]}  d6 {[%clk 0:02:48]} 6. c4 {[%clk 0:02:57]}  e5 {[%clk 0:02:41]} 7. Nc3 {[%clk 0:02:57]}  Nge7 {[%clk 0:02:40]} 8. Ne1 {[%clk 0:02:58]}  O-O {[%clk 0:02:39]} 9. Nc2 {[%clk 0:02:59]}  Be6 {[%clk 0:02:34]} 10. Ne3 {[%clk 0:02:59]}  Qd7 {[%clk 0:02:30]} 11. Rb1 {[%clk 0:02:58]}  Bh3 {[%clk 0:02:27]} 12. a3 {[%clk 0:02:58]}  Bxg2 {[%clk 0:02:27]} 13. Kxg2 {[%clk 0:02:59]}  a5 {[%clk 0:02:24]} 14. Ned5 {[%clk 0:02:56]}  Nxd5 {[%clk 0:02:23]} 15. Nxd5 {[%clk 0:02:57]}  Ra7 {[%clk 0:02:13]} 16. f4 {[%clk 0:02:45]}  Ne7 {[%clk 0:02:04]} 17. Nc3 {[%clk 0:02:25]}  exf4 {[%clk 0:02:02]} 18. Bxf4 {[%clk 0:02:24]}  d5 {[%clk 0:02:02]} 19. cxd5 {[%clk 0:02:03]}  Nxd5 {[%clk 0:02:02]} 20. Nxd5 {[%clk 0:02:03]}  Qxd5+ {[%clk 0:02:02]} 21. e4 {[%clk 0:02:04]}  Qd7 {[%clk 0:01:57]} 22. Qc2 {[%clk 0:02:02]}  b6 {[%clk 0:01:53]} 23. Rf3 {[%clk 0:02:00]}  h6 {[%clk 0:01:41]} 24. Rbf1 {[%clk 0:01:44]}  Rd8 {[%clk 0:01:34]} 25. Bd2 {[%clk 0:01:41]}  Qe6 {[%clk 0:01:27]} 26. Bc3 {[%clk 0:01:42]}  Rad7 {[%clk 0:01:22]} 27. Bxg7 {[%clk 0:01:23]}  Kxg7 {[%clk 0:01:22]} 28. Qc3+ {[%clk 0:01:24]}  Kg8 {[%clk 0:01:15]} 29. Rf6 {[%clk 0:01:10]}  Rxd3 {[%clk 0:01:01]} 30. Rxe6 {[%clk 0:01:02]}  Rxc3 {[%clk 0:01:01]} 31. Rxg6+ {[%clk 0:00:51]}  fxg6 {[%clk 0:00:59]} 32. bxc3 {[%clk 0:00:52]}  Rd2+ {[%clk 0:00:49]} 33. Kh3 {[%clk 0:00:52]}  Rc2 {[%clk 0:00:46]} 34. Rf6 {[%clk 0:00:52]}  Kg7 {[%clk 0:00:45]} 35. Rxb6 {[%clk 0:00:53]}  Rxc3 {[%clk 0:00:45]} 36. Rc6 {[%clk 0:00:48]}  a4 {[%clk 0:00:36]} 37. Kg4 {[%clk 0:00:47]}  Rxa3 {[%clk 0:00:25]} 38. Rxc5 {[%clk 0:00:47]}  Ra1 {[%clk 0:00:23]} 39. e5 {[%clk 0:00:45]}  a3 {[%clk 0:00:22]} 40. Rc7+ {[%clk 0:00:46]}  Kf8 {[%clk 0:00:21]} 41. Ra7 {[%clk 0:00:45]}  a2 {[%clk 0:00:19]} 42. h4 {[%clk 0:00:42]}  Ke8 {[%clk 0:00:16]} 43. e6 {[%clk 0:00:33]}  Kf8 {[%clk 0:00:17]} 44. Rf7+ {[%clk 0:00:31]}  Ke8 {[%clk 0:00:17]} 45. Rf2 {[%clk 0:00:29]}  Ke7 {[%clk 0:00:15]} 46. Re2 {[%clk 0:00:28]}  Rf1 {[%clk 0:00:04]} 47. Rxa2 {[%clk 0:00:28]}  Kxe6 {[%clk 0:00:04]} 48. Ra7 {[%clk 0:00:28]}  Rf6 {[%clk 0:00:03]} 49. Rg7 {[%clk 0:00:26]}  Kd6 {[%clk 0:00:02]} 50. Rh7 {[%clk 0:00:25]}  h5+ {[%clk 0:00:02]} 51. Kg5 {[%clk 0:00:26]}  Rf3 {[%clk 0:00:02]} 52. Kxg6 {[%clk 0:00:23]}  Rxg3+ {[%clk 0:00:02]} 53. Kxh5 {[%clk 0:00:24]}  Ke6 {[%clk 0:00:02]} 54. Rh6+ {[%clk 0:00:25]}  Kf7 {[%clk 0:00:02]} 55. Ra6 {[%clk 0:00:26]}  Kg7 {[%clk 0:00:03]} 56. Ra7+ {[%clk 0:00:26]}  Kh8 {[%clk 0:00:03]} 57. Ra6 {[%clk 0:00:27]}  Rg1 {[%clk 0:00:03]} 58. Ra7 {[%clk 0:00:25]}  Kg8 {[%clk 0:00:02]} 59. Kh6 {[%clk 0:00:24]} 1-0


[Site "https://www.chess.com"]

[Event "Titled Tuesday Blitz July 27 2021"]
[White "Agibileg, Uurtsaikh"]
[Black "Calderon, Zachary"]
[WhiteFideId "4901606"]
[BlackFideId "2076969"]
[WhiteElo "2117"]
[BlackElo "2239"]
[Result "1-0"]
[Round "07"]
[TimeControl "180+1"]
[Date "2021.07.27"]
[WhiteClock "0:00:19"]
[BlackClock "0:00:05"]

1. d4 {[%clk 0:03:00]}  d5 {[%clk 0:02:59]} 2. c4 {[%clk 0:03:01]}  e6 {[%clk 0:03:00]} 3. Nc3 {[%clk 0:03:01]}  a6 {[%clk 0:03:00]} 4. cxd5 {[%clk 0:02:58]}  exd5 {[%clk 0:03:01]} 5. Nf3 {[%clk 0:02:59]}  c6 {[%clk 0:03:00]} 6. Bf4 {[%clk 0:02:57]}  Bd6 {[%clk 0:02:56]} 7. Bxd6 {[%clk 0:02:54]}  Qxd6 {[%clk 0:02:57]} 8. e3 {[%clk 0:02:54]}  Nf6 {[%clk 0:02:56]} 9. Be2 {[%clk 0:02:55]}  Bg4 {[%clk 0:02:55]} 10. O-O {[%clk 0:02:54]}  Nbd7 {[%clk 0:02:53]} 11. h3 {[%clk 0:02:53]}  Bxf3 {[%clk 0:02:53]} 12. Bxf3 {[%clk 0:02:54]}  O-O {[%clk 0:02:53]} 13. Qc2 {[%clk 0:02:51]}  Rfe8 {[%clk 0:02:47]} 14. Na4 {[%clk 0:02:44]}  Ne4 {[%clk 0:02:44]} 15. Bxe4 {[%clk 0:02:43]}  Rxe4 {[%clk 0:02:45]} 16. Rab1 {[%clk 0:02:41]}  a5 {[%clk 0:02:41]} 17. a3 {[%clk 0:02:40]}  Re6 {[%clk 0:02:20]} 18. b4 {[%clk 0:02:37]}  b5 {[%clk 0:02:20]} 19. Nc5 {[%clk 0:02:36]}  Nxc5 {[%clk 0:02:18]} 20. Qxc5 {[%clk 0:02:18]}  Qxc5 {[%clk 0:02:17]} 21. bxc5 {[%clk 0:02:14]}  f5 {[%clk 0:02:15]} 22. g3 {[%clk 0:01:51]}  g5 {[%clk 0:02:08]} 23. Kg2 {[%clk 0:01:50]}  Kf7 {[%clk 0:01:57]} 24. Kf3 {[%clk 0:01:50]}  h5 {[%clk 0:01:53]} 25. h4 {[%clk 0:01:49]}  g4+ {[%clk 0:01:52]} 26. Ke2 {[%clk 0:01:44]}  Rae8 {[%clk 0:01:47]} 27. Kd3 {[%clk 0:01:44]}  Kg6 {[%clk 0:01:39]} 28. Rbe1 {[%clk 0:01:44]}  Rf6 {[%clk 0:01:10]} 29. Re2 {[%clk 0:01:39]}  Ref8 {[%clk 0:01:04]} 30. f3 {[%clk 0:01:33]}  R8f7 {[%clk 0:00:59]} 31. Ref2 {[%clk 0:01:32]}  Rf8 {[%clk 0:00:53]} 32. Re1 {[%clk 0:01:16]}  R8f7 {[%clk 0:00:52]} 33. Rfe2 {[%clk 0:01:12]}  Rf8 {[%clk 0:00:40]} 34. Kd2 {[%clk 0:00:57]}  Re8 {[%clk 0:00:32]} 35. e4 {[%clk 0:00:39]}  fxe4 {[%clk 0:00:26]} 36. fxe4 {[%clk 0:00:39]}  dxe4 {[%clk 0:00:20]} 37. Rxe4 {[%clk 0:00:40]}  Rxe4 {[%clk 0:00:20]} 38. Rxe4 {[%clk 0:00:41]}  Kf7 {[%clk 0:00:20]} 39. Re5 {[%clk 0:00:39]}  Kg6 {[%clk 0:00:18]} 40. Re7 {[%clk 0:00:36]}  Rf3 {[%clk 0:00:16]} 41. Re6+ {[%clk 0:00:35]}  Rf6 {[%clk 0:00:16]} 42. Re8 {[%clk 0:00:35]}  Rf3 {[%clk 0:00:16]} 43. Rc8 {[%clk 0:00:23]}  Rf6 {[%clk 0:00:12]} 44. Ke3 {[%clk 0:00:22]}  Rf3+ {[%clk 0:00:12]} 45. Ke4 {[%clk 0:00:22]}  Rxg3 {[%clk 0:00:09]} 46. Rxc6+ {[%clk 0:00:22]}  Kf7 {[%clk 0:00:10]} 47. Rc7+ {[%clk 0:00:22]}  Ke6 {[%clk 0:00:09]} 48. d5+ {[%clk 0:00:22]}  Kf6 {[%clk 0:00:09]} 49. d6 {[%clk 0:00:22]}  Rg1 {[%clk 0:00:06]} 50. d7 {[%clk 0:00:18]}  Ke7 {[%clk 0:00:07]} 51. c6 {[%clk 0:00:18]}  Re1+ {[%clk 0:00:06]} 52. Kf4 {[%clk 0:00:17]}  b4 {[%clk 0:00:06]} 53. axb4 {[%clk 0:00:17]}  axb4 {[%clk 0:00:07]} 54. Rc8 {[%clk 0:00:17]}  Rd1 {[%clk 0:00:06]} 55. Re8+ {[%clk 0:00:18]}  Kf7 {[%clk 0:00:06]} 56. d8=Q {[%clk 0:00:18]}  Rxd8 {[%clk 0:00:04]} 57. Rxd8 {[%clk 0:00:19]}  b3 {[%clk 0:00:04]} 58. c7 {[%clk 0:00:19]}  b2 {[%clk 0:00:04]} 59. Rb8 {[%clk 0:00:20]}  Ke7 {[%clk 0:00:04]} 60. c8=Q {[%clk 0:00:20]}  b1=Q {[%clk 0:00:04]} 61. Rxb1 {[%clk 0:00:19]}  g3 {[%clk 0:00:04]} 62. Qc7+ {[%clk 0:00:19]}  Ke6 {[%clk 0:00:04]} 63. Rb6+ {[%clk 0:00:19]}  Kd5 {[%clk 0:00:05]} 64. Rd6# {[%clk 0:00:19]} 1-0


[Site "https://www.chess.com"]

[Event "Titled Tuesday Blitz July 27 2021"]
[White "Aldokhin, Ivan"]
[Black "Subrota, Biswas"]
[WhiteFideId "24115720"]
[BlackFideId "10216200"]
[WhiteElo "2306"]
[BlackElo "2177"]
[Result "0-1"]
[Round "07"]
[TimeControl "180+1"]
[Date "2021.07.27"]
[WhiteClock "0:00:04"]
[BlackClock "0:00:59"]

1. e4 {[%clk 0:03:00]}  c6 {[%clk 0:02:59]} 2. Nc3 {[%clk 0:03:00]}  d5 {[%clk 0:03:00]} 3. d4 {[%clk 0:03:01]}  dxe4 {[%clk 0:02:59]} 4. Nxe4 {[%clk 0:03:01]}  Nf6 {[%clk 0:03:00]} 5. Ng5 {[%clk 0:03:02]}  Bf5 {[%clk 0:02:56]} 6. N1f3 {[%clk 0:03:00]}  h6 {[%clk 0:02:55]} 7. Nxf7 {[%clk 0:03:00]}  Kxf7 {[%clk 0:02:55]} 8. Ne5+ {[%clk 0:03:01]}  Kg8 {[%clk 0:02:51]} 9. Bc4+ {[%clk 0:02:43]}  Kh7 {[%clk 0:02:50]} 10. c3 {[%clk 0:02:27]}  Nbd7 {[%clk 0:02:48]} 11. Nf7 {[%clk 0:02:27]}  Qc7 {[%clk 0:02:43]} 12. Qf3 {[%clk 0:02:16]}  e6 {[%clk 0:02:34]} 13. Bf4 {[%clk 0:01:53]}  Qb6 {[%clk 0:02:01]} 14. O-O-O {[%clk 0:01:52]}  g5 {[%clk 0:01:50]} 15. Be5 {[%clk 0:01:29]}  Nxe5 {[%clk 0:01:39]} 16. dxe5 {[%clk 0:01:04]}  Nd5 {[%clk 0:01:39]} 17. Bd3 {[%clk 0:01:03]}  Bxd3 {[%clk 0:01:32]} 18. Qxd3+ {[%clk 0:00:59]}  Kg7 {[%clk 0:01:32]} 19. Nxh8 {[%clk 0:00:56]}  Kxh8 {[%clk 0:01:33]} 20. g4 {[%clk 0:00:36]}  Bg7 {[%clk 0:01:32]} 21. h4 {[%clk 0:00:35]}  Qxf2 {[%clk 0:01:25]} 22. hxg5 {[%clk 0:00:30]}  Qf4+ {[%clk 0:01:26]} 23. Qd2 {[%clk 0:00:20]}  Qxd2+ {[%clk 0:01:12]} 24. Kxd2 {[%clk 0:00:20]}  Bxe5 {[%clk 0:01:11]} 25. Rxh6+ {[%clk 0:00:19]}  Kg7 {[%clk 0:01:11]} 26. Rdh1 {[%clk 0:00:15]}  Bf4+ {[%clk 0:01:12]} 27. Kd3 {[%clk 0:00:16]}  Bxg5 {[%clk 0:01:13]} 28. Rh7+ {[%clk 0:00:16]}  Kf6 {[%clk 0:01:12]} 29. Rxb7 {[%clk 0:00:17]}  Rd8 {[%clk 0:01:09]} 30. Ke4 {[%clk 0:00:16]}  Kg6 {[%clk 0:01:06]} 31. Rxa7 {[%clk 0:00:09]}  Nf6+ {[%clk 0:01:05]} 32. Kf3 {[%clk 0:00:09]}  Rd3+ {[%clk 0:01:04]} 33. Ke2 {[%clk 0:00:08]}  Rd2+ {[%clk 0:01:04]} 34. Kf3 {[%clk 0:00:08]}  e5 {[%clk 0:01:02]} 35. Rb1 {[%clk 0:00:05]}  e4+ {[%clk 0:01:03]} 36. Kg3 {[%clk 0:00:05]}  Nd5 {[%clk 0:01:00]} 37. Re1 {[%clk 0:00:04]}  Bf4+ {[%clk 0:00:59]} 0-1


[Site "https://www.chess.com"]

[Event "Titled Tuesday Blitz July 27 2021"]
[White "Amburgy, Ryan"]
[Black "Shevchenko, Kirill"]
[WhiteFideId "30924820"]
[BlackFideId "14129574"]
[WhiteElo "2066"]
[BlackElo "2569"]
[Result "0-1"]
[Round "07"]
[TimeControl "180+1"]
[Date "2021.07.27"]
[WhiteClock "0:00:59"]
[BlackClock "0:02:00"]

1. Nf3 {[%clk 0:03:00]}  Nf6 {[%clk 0:02:59]} 2. c4 {[%clk 0:03:00]}  d6 {[%clk 0:02:56]} 3. d4 {[%clk 0:02:55]}  Nbd7 {[%clk 0:02:45]} 4. Nc3 {[%clk 0:02:54]}  e5 {[%clk 0:02:45]} 5. e4 {[%clk 0:02:53]}  g6 {[%clk 0:02:46]} 6. h3 {[%clk 0:02:50]}  Bg7 {[%clk 0:02:46]} 7. Be3 {[%clk 0:02:50]}  O-O {[%clk 0:02:45]} 8. d5 {[%clk 0:02:45]}  Nc5 {[%clk 0:02:43]} 9. Qc2 {[%clk 0:02:46]}  Nh5 {[%clk 0:02:39]} 10. b4 {[%clk 0:02:42]}  Nd7 {[%clk 0:02:37]} 11. Rb1 {[%clk 0:02:25]}  f5 {[%clk 0:02:22]} 12. Bg5 {[%clk 0:02:16]}  Bf6 {[%clk 0:02:18]} 13. Bh6 {[%clk 0:02:05]}  Bg7 {[%clk 0:02:13]} 14. Bg5 {[%clk 0:02:04]}  Ndf6 {[%clk 0:02:13]} 15. Bd3 {[%clk 0:01:39]}  h6 {[%clk 0:02:12]} 16. Bxf6 {[%clk 0:01:39]}  Qxf6 {[%clk 0:02:11]} 17. exf5 {[%clk 0:01:36]}  Nf4 {[%clk 0:02:09]} 18. g4 {[%clk 0:01:21]}  Nxd3+ {[%clk 0:02:01]} 19. Qxd3 {[%clk 0:01:22]}  gxf5 {[%clk 0:02:01]} 20. gxf5 {[%clk 0:00:59]}  Bxf5 {[%clk 0:02:00]} 0-1


[Site "https://www.chess.com"]